Cogmind - Beta 12 @@@ ROGUE MODE // 2023.10.29 @ 13:32:19 Player: monistgf Result: Self-destructed Performance ------------- Evolutions (2) 1000 Regions Visited (3) 600 Robots Destroyed (47) 235 Value Destroyed (1291) 1291 Prototype IDs (0) 0 Alien Tech Used (0) 0 Bonus (41) 41 TOTAL SCORE: 3167 Bonus ------- High Alert Combat Kills 41 Cogmind --------- Core Integrity 384/550 Matter 1/300 Energy 154/160 System Corruption 0% Temperature Cool (3) Movement Treading (330) Ox2 Location -8/Materials Parts ------- > --- POWER (1) -------- Light Nuclear Core > --- PROPULSION (3) --- Armored Treads > --- UTILITY (4) ------ High-capacity Storage Unit > --- WEAPON (3) ------- Minigun > --- INVENTORY (20) --- Improved Ion Engine High-capacity Storage Unit Reflective Plating Reflective Plating Long-range Tractor Beam Minigun Minigun Minigun Minigun Flak Cannon Flak Cannon Flak Cannon Grenade Launcher Hammer Peak State ------------ > --- POWER ------------ Light Nuclear Core > --- PROPULSION ------- Armored Treads Wheel Compact Wheel > --- UTILITY ---------- High-capacity Storage Unit Sensor Array Reflective Plating > --- WEAPON ----------- Minigun Minigun Flak Cannon > --- INVENTORY -------- Improved Ion Engine Compact Wheel High-capacity Storage Unit Reflective Plating Reflective Plating Long-range Tractor Beam Minigun Minigun Minigun Minigun Flak Cannon Flak Cannon Flak Cannon Grenade Launcher Hammer [Rating: 25] Favorites ----------- Power Improved Ion Engine Engine Improved Ion Engine Power Core Light Nuclear Core Propulsion Compact Wheel Treads Armored Treads Leg Aluminum Leg Wheel Compact Wheel Utility High-capacity Storage Unit Device Sensor Array Storage High-capacity Storage Unit Processor Signal Interpreter Protection Light Armor Plating Weapon Flak Cannon Energy Gun Beam Rifle Ballistic Gun Light Assault Rifle Ballistic Cannon Flak Cannon Launcher Grenade Launcher Build | -11 -10 -9 -8 ------- Run | Jun Mat Mat Mat Slots Evolved 4 | . . 2 2 Power . | . . . . Propulsion 1 | . . 1 . Utility 2 | . . . 2 Weapon 1 | . . 1 . Parts Attached 45 | . 5 21 19 Power 5 | . . 3 2 Engine 3 | . . 3 . Core 2 | . . . 2 Reactor . | . . . . Propulsion 17 | . 3 7 7 Treads 3 | . . 1 2 Leg 1 | . 1 . . Wheel 13 | . 2 6 5 Hover . | . . . . Flight . | . . . . Utility 10 | . 2 4 4 Device 1 | . . . 1 Storage 2 | . 2 . . Processor 1 | . . 1 . Hackware . | . . . . Protection 6 | . . 3 3 Artifact . | . . . . Weapon 13 | . . 7 6 Energy Gun 3 | . . 3 . Energy Cannon . | . . . . Ballistic Gun 6 | . . 2 4 Ballistic Cannon 3 | . . 2 1 Launcher 1 | . . . 1 Special Weapon . | . . . . Impact Weapon . | . . . . Slashing Weapon . | . . . . Piercing Weapon . | . . . . Special Melee Weapon . | . . . . Unidentified Prototypes . | . . . . Parts Lost 19 | . . 6 13 Power 3 | . . 1 2 Propulsion 9 | . . 2 7 Utility 4 | . . . 4 Weapon 3 | . . 3 . Highest Loss Streak 4 | . . 2 4 To Critical Strikes . | . . . . Average Slot Usage (%) 90 | . 85 96 85 Engine 9 | . 14 11 2 Core 1 | . . . 5 Leg 6 | . 22 . . Wheel 22 | . 5 31 25 Device 2 | . . . 8 Storage 11 | . 14 11 9 Processor 1 | . . 3 . Protection 6 | . . 6 12 Energy Gun 8 | . 14 11 . Ballistic Gun 11 | . 14 5 17 Ballistic Cannon 7 | . . 14 5 Naked Turns . | . . . . Heaviest Build 67 | 11 46 66 67 Greatest Support 48 | 20 26 48 42 Greatest Overweight (x) 2 | . 1 2 2 Average Overweight (x) . | . . 1 1 Largest Inventory Capacity 20 | . 20 20 20 Average Capacity 18 | . 14 20 20 Most Carried 20 | . 20 20 20 Average Carried 15 | . 9 17 17 Final Capacity 20 | 8 20 20 20 Final Carried 20 | 6 15 20 14 Class Distribution -------------------- 42% | Mutant 18% | Scavenger-Mutant 17% | Tank 16% | Scavenger-Tank 5% | Gunner Dominant Class ---------------- Mutant | -10/Materials Scavenger-Mutant | -9/Materials Scavenger-Tank | -8/Materials Resources | -11 -10 -9 -8 ----------- Run | Jun Mat Mat Mat Matter Collected 1259 | 200 71 575 413 Remotely . | . . . . Salvage Created 1394 | . 206 700 488 Parts 83 | . 11 48 24 Haulers Intercepted 3 | . 1 1 1 Recyclers Shooed 1 | . . 1 . Parts Field Recycled . | . . . . Retrieved Matter . | . . . . Parts Self-Destructed . | . . . . Prevented . | . . . . Kills | -11 -10 -9 -8 ------- Run | Jun Mat Mat Mat Combat Hostiles Destroyed 40 | . 5 22 13 Guns 23 | . 5 10 8 Cannons 14 | . . 12 2 AOE 3 | . . . 3 Classes Destroyed 9 | . 3 6 . Worker 2 | . . 1 1 Builder 1 | . . 1 . Hauler 3 | . 1 1 1 Watcher 1 | . . 1 . Swarmer 13 | . 3 7 3 Grunt 19 | . 2 8 9 Brawler 1 | . . 1 . Duelist 1 | . . 1 . Sentry 6 | . . 5 1 Best Kill Streak 7 | . 3 4 7 Combat Bots Only 6 | . 3 4 6 Max Kills in Single Turn 2 | . 1 2 2 Gunslinging . | . . . . Exploded 2 | . . . 2 Melee . | . . . . Uniques/NPCs Destroyed . | . . . . Combat | -11 -10 -9 -8 -------- Run | Jun Mat Mat Mat Damage Taken 2340 | . 201 819 1320 Core 345 | . 54 125 166 Absorbed by Shields . | . . . . Redirected to Shielding 53 | . . 7 46 Core Remaining (%) 82 | 100 78 68 . Volleys Fired 134 | . 21 67 46 Largest 3 | . 2 3 3 Hottest 144 | . 60 144 108 Shots Fired 322 | . 42 158 122 Gun 233 | . 42 94 97 Cannon 87 | . . 64 23 Launcher 2 | . . . 2 Special . | . . . . Kinetic 257 | . 21 116 120 Thermal 41 | . . 41 . Explosive 2 | . . . 2 Electromagnetic 22 | . 21 1 . Robot Hit Streak 11 | . 11 11 11 Robot Miss Streak 16 | . 3 14 16 Penetration Max . | . . . . Secondary Targets 1 | . . 1 . Max Gunslinging Chain 1 | . . 1 . Shots Hit Robots 212 | . 27 108 77 Core Hits 115 | . 10 65 40 Critical Kills . | . . . . Critical Parts Destroyed . | . . . . Critical Strikes 1 | . . 1 . Burn 1 | . . 1 . Melee Attacks . | . . . . Impact . | . . . . Slashing . | . . . . Piercing . | . . . . Sneak Attacks . | . . . . Combat Hostiles . | . . . . Follow-up Attacks . | . . . . Damage Inflicted 3435 | . 336 1497 1602 Guns 2017 | . 336 564 1117 Cannons 1304 | . . 933 371 Explosions 108 | . . . 108 Melee . | . . . . Ramming 6 | . . . 6 Kinetic 2734 | . 86 1160 1488 Thermal 337 | . . 337 . Explosive 108 | . . . 108 Electromagnetic 250 | . 250 . . Impact . | . . . . Slashing . | . . . . Piercing . | . . . . Highest Corruption . | . . . . Average Corruption . | . . . . Corruption Purged . | . . . . Corruption Blocked . | . . . . Overload Shots . | . . . . Overflow Damage . | . . . . Projectiles . | . . . . Explosions . | . . . . Melee . | . . . . Knockbacks 31 | . . 22 9 Impact . | . . . . Kinetic 26 | . . 18 8 Secondary 5 | . . 4 1 Self-Inflicted Damage 3 | . . . 3 Shots . | . . . . Rammed 1 | . . . 1 Targets Rammed 1 | . . . 1 Kicked . | . . . . Crushed . | . . . . Highest Temperature 291 | . 156 291 189 Average Temperature 88 | . 54 104 70 Received Heat Transfer 1068 | . 114 234 720 Effects 1 | . . 1 . Interference 1 | . . 1 . Siege Activations . | . . . . Robots Corrupted . | . . . . Combat Hostiles . | . . . . Parts Fried . | . . . . Impact Corruptions . | . . . . Robots Melted . | . . . . Combat Hostiles . | . . . . Parts Melted 2 | . . 2 . Heat Transferred 915 | . . 915 . Parts Sabotaged . | . . . . Parts Stolen . | . . . . Parts Stripped . | . . . . Power Chain Reactions . | . . . . Missiles Intercepted . | . . . . Alert | -11 -10 -9 -8 ------- Run | Jun Mat Mat Mat Peak Influence 465 | . 142 407 465 Initial 161 | . . 5 161 Average 201 | . 43 247 285 Maximum Alert Level 2 | . . 2 2 Low Security (%) 47 | . 100 28 25 Level 1 45 | . . 69 51 Level 2 7 | . . 1 23 Level 3 . | . . . . Level 4 . | . . . . Level 5 . | . . . . High Security . | . . . . Max Security . | . . . . Squads Dispatched 3 | . . 1 2 Investigation . | . . . . Extermination . | . . . . Reinforcement 2 | . . 1 1 Assault . | . . . . Garrison 1 | . . . 1 Intercept . | . . . . Searches Triggered . | . . . . Construction Impeded . | . . . . Haulers Reinforced . | . . . . Active Scanning Responses . | . . . . Cargo Convoy Interrupts . | . . . . Stealth | -11 -10 -9 -8 --------- Run | Jun Mat Mat Mat Distress Signals 5 | . . 2 3 Communications Jammed . | . . . . Distress Signals . | . . . . Times Spotted 64 | . 8 30 26 Peak Tracking Total 7 | . 3 7 7 Tactical Retreats 2 | . . 1 1 Traps | -11 -10 -9 -8 ------- Run | Jun Mat Mat Mat Traps Triggered 2 | . . . 2 Indirectly . | . . . . Trap Hack Attempts . | . . . . Triggered . | . . . . Disarmed . | . . . . Reprogrammed . | . . . . Reused . | . . . . Traps Extracted . | . . . . Installed . | . . . . Triggered . | . . . . Machines | -11 -10 -9 -8 ---------- Run | Jun Mat Mat Mat Machines Disabled . | . . . . Max in Single Turn . | . . . . Machines Repaired . | . . . . Machines Sabotaged . | . . . . Overloaded Fab Kills . | . . . . Hacking | -11 -10 -9 -8 --------- Run | Jun Mat Mat Mat Machines Accessed 2 | . 1 . 1 Terminals 2 | . 1 . 1 Fabricators . | . . . . Repair Stations . | . . . . Recycling Units . | . . . . Scanalyzers . | . . . . Garrison Access . | . . . . Total Hacks 5 | . 2 . 3 Successful 1 | . . . 1 Failed 4 | . 2 . 2 Catastrophic . | . . . . Database Lockouts . | . . . . Manual 3 | . . . 3 Terminals 5 | . 2 . 3 Fabricators . | . . . . Repair Stations . | . . . . Recycling Units . | . . . . Scanalyzers . | . . . . Garrison Access . | . . . . Terminal Hacks . | . . . . Fabricator Hacks . | . . . . Repair Station Hacks . | . . . . Recycling Unit Hacks . | . . . . Scanalyzer . | . . . . Garrison Access Hacks . | . . . . Unauthorized Hacks 1 | . . . 1 Terminals 1 | . . . 1 Botnet 1 | . . . 1 Fabricators . | . . . . Repair Stations . | . . . . Recycling Units . | . . . . Scanalyzers . | . . . . Garrison Access . | . . . . Data Cores Recovered . | . . . . Used . | . . . . Hacking Detections 2 | . 1 . 1 Full Trace Events . | . . . . Feedback Events . | . . . . Feedback Blocked . | . . . . Robot Schematics Acquired . | . . . . Robots Built . | . . . . Authchips . | . . . . Time . | . . . . Total Robot Build Rating . | . . . . Part Schematics Acquired . | . . . . Parts Built . | . . . . Authchips . | . . . . Time . | . . . . Total Part Build Rating . | . . . . Parts Repaired . | . . . . Time . | . . . . Parts Recycled . | . . . . Recycled Matter . | . . . . Retrieved Matter . | . . . . Retrieved Components . | . . . . Parts Scanalyzed . | . . . . Part Schematics Acquired . | . . . . Parts Damaged . | . . . . Bothacking | -11 -10 -9 -8 ------------ Run | Jun Mat Mat Mat Used RIF Installer . | . . . . Robots Hacked . | . . . . Non-combat . | . . . . Combat . | . . . . Robot Hacks Applied . | . . . . Relay Couplers Released . | . . . . Fabnet Peak Effective % . | . . . . Robots Rewired . | . . . . Allies Hacked . | . . . . Hacks Repelled . | . . . . Allies | -11 -10 -9 -8 -------- Run | Jun Mat Mat Mat Total Allies . | . . . . Largest Group . | . . . . Highest-Rated Group . | . . . . Highest-Rated Ally . | . . . . Total Orders . | . . . . Ally Attacks . | . . . . Total Damage . | . . . . Kills . | . . . . Allies Corrupted . | . . . . Allies Melted . | . . . . Intel | -11 -10 -9 -8 ------- Run | Jun Mat Mat Mat Robot Analysis Total . | . . . . Derelict Logs Recovered . | . . . . Drone Launches . | . . . . Drone Recoveries . | . . . . Exploration | -11 -10 -9 -8 ------------- Run | Jun Mat Mat Mat Turns Passed 1735 | . 482 764 489 Spaces Moved 975 | 1 280 434 260 Core . | . . . . Treads . | . . . . Legs 204 | 1 203 . . Wheels 771 | . 77 434 260 Hover . | . . . . Flight . | . . . . Fastest Speed 101 | 120 105 105 101 Average Speed 117 | 120 140 108 108 Slowest Speed 190 | 120 190 120 130 Overloaded Moves . | . . . . Propulsion Burnouts . | . . . . Robots Hopped . | . . . . Cave-ins Triggered . | . . . . Exploration Rate (%) 30 | 2 47 47 27 Regions Visited 3 Branch Regions . Pre-discovered Areas . | . . . . Known Exits Taken 1 | . . 1 . Unknown Exits Taken 2 | 1 1 . . Scrap Searched . | . . . . Spaces Dug . | . . . . Terrain Destroyed 15 | . . . 15 Melee . | . . . . Projectile . | . . . . AOE 15 | . . . 15 Terrain Rammed . | . . . . Walls Destroyed . | . . . . Machines Disabled . | . . . . Actions | -11 -10 -9 -8 --------- Run | Jun Mat Mat Mat Total 1330 | . 331 606 393 Wait 115 | . 8 53 54 Move 972 | . 279 433 260 Hop . | . . . . Pick Up 35 | . 11 16 8 Fast Attach 11 | . 2 6 3 Attach 16 | . . 6 10 Detach 5 | . 2 3 . Swap 18 | . 3 9 6 Drop 23 | . 5 13 5 Fire 134 | . 21 67 46 Melee . | . . . . Ram 1 | . . . 1 Kick . | . . . . Crush . | . . . . Escape Stasis . | . . . . Rewire . | . . . . Trap . | . . . . Miscellaneous . | . . . . Route ------- -11/Junkyard -10/Materials -9/Materials (discovered 3 exits: *Mat / *Sto x2) -8/Materials History --------- Turn | Location | Event 1 | -11/Junkyard | Discovered new exit (range 0) 1 | -11/Junkyard | Entered Materials 302 | -10/Materials | Build established: Mutant 426 | -10/Materials | Discovered new exit (range 3) 483 | -10/Materials | Entered another Materials area 483 | -9/Materials | Evolved 2 slots: Propulsion x1, Weapon x1 698 | -9/Materials | Discovered new exit (range 8) 889 | -9/Materials | Discovered new exit (range 16) 980 | -9/Materials | Identified exit to Storage 1191 | -9/Materials | Discovered new exit (range 16) 1206 | -9/Materials | Identified exit to Materials 1247 | -9/Materials | Entered another Materials area 1247 | -8/Materials | Evolved 2 slots: Utility x2 1402 | -8/Materials | Garrison activated, responded to threat 1511 | -8/Materials | Lost 4 parts (1p2n1u) 1736 | -8/Materials | Self-destructed Last Messages --------------- 01651_ Flak Cannon severed. 01652_ U-05 Engineer lays Concrete. 01652_ Acquired Com. Wheel. 01655_ U-05 Engineer lays Concrete. 01668_ K-01 Serf collects debris. 01671_ R-06 Scavenger collects Imp. Heat Sink. 01672_ K-01 Serf collects debris. 01675_ R-06 Scavenger collects Imp. Heat Sink. 01675_ K-01 Serf collects debris. 01695_ Acquired 11 matter. 01697_ Acquired 7 matter. 01697_ Wheel destroyed. 01701_ Sensor Array destroyed. 01701_ Critical hit (Burn: +37). 01709_ Com. Wheel destroyed. 01724_ Slammed into G-47 Trooper. 01725_ W-25 Informer sends out distress signal. 01726_ Penetrated by Slug. 01734_ Com. Wheel destroyed. 01735_ Critical hit (Burn: +37). Map ----- +----------------------------------------------------+ | ?????????????????????????????????????????????????? | | ?????????????????????????????????????????????????? | | ?????????????????????????????????????????????????? | | ?????????????????????????????????????????????????? | | ?????????????????????????????????????????????????? | | ?????????????????????????????????????????????????? | | ?????????????????????????????????????????????????? | | ?????????????????????????????????????????????????? | | ?????????????????????????????????????????????????? | | ?????????????????????????????????????????????????? | | ??????????????##########?????????????????????????? | | ??????????????# ?????????????????????????? | | ??????????????# #?????????????????????????? | | ??????????????# #???#?????????????????????? | | ??????????????# #?? ###???????????????????? | | ??????????????# |!!#?? #???????????????? ? | | ??????????????# |!!#?? #???????????????? # | | ??????????????# " " !!!#?? #???????????????? # | | ??????????????# "R" #?? #???????????????? + | | ??????????????# """ #?? #???????????????? # | | ??????????????#####/####?? #???????????????# # | | ######??????????# ag #### #???????????????# # | | #??????????# g #???????????????# # | | #??????????# #???????????????# # | | """ #??????????# #???????????????# T | | """" #??????????# ###@####???????????????# # | | """" #??????????## ## ?????????????????# # | | """" #??????????## ## #???????????????# # | | """ #??????????## ## / #?? ?????????# # | | #??????????## ##!!! #?? ????????# # | | ############# =##!!! !#?? ????????# # | | #+##### """""==## ##!! #?? ?????????# # | | / """"" ## #########?# ?????????# # | | #### """"" ## ##????????# #?????????# # | | #??# [## ##????????# #?????????# # | | #??# ## #?????????# ########### # | | #??# "" "" ## #?????????# ## ## # | | #??# ""S"" ## #?????????# ## """ ## # | | #??# """" ## #?????????# ## """ ## # | | ##########/### ########### ## """ ## * " | | % ## """ ## !# | | ^ ## ## # | | %^ ## """ + # | | ###+####################+### ## """ ###+## | | ##### ??????????????????? ## ## """ # | | ????#??????????????????? ## ## """ # | | ?????????????????????? ## ## # | | ????????????????????# """ # [###+##### """ | | ????????????????????# """"" # [ [= ## """ | | ????????????????????# """"" # [[[ ## """ | +----------------------------------------------------+ Best States ------------- Heat Dissipation 31 Energy Generation 14 Energy Capacity 265 Matter Stores 300 Matter Capacity 300 Sight Range 16 Robot Scan Range 14 Terrain Scan Density 10 Armor Coverage 150 Resistance: TH 10 Propulsion Shielding 33 Evasion (%) 55 Recoil Reduction 1 Item Schematics ----------------- None Robot Schematics ------------------ None Fabricated ------------ Nothing Alien Tech Used ----------------- None Achievements -------------- None Challenges ------------ None Game ------ Seed SkeletonReactionBoregun Manual? 0 Play Time 00:18:49 Cumulative 143.9 hours Start 2023.10.29 @ 13:06:46 End 2023.10.29 @ 13:32:19 Sessions 1 Manual Loads 0 Difficulty Rogue Special Mode None Game No. 82 Rogue 82 Adventurer 0 Explorer 0 Win Type - Total 0 Types 0/0/0/0/0/0/0/0/0 Lore% 31 Gallery% 61 Achievement% 47 Wizard Run 0 Options --------- ASCII 0 Keyboard 1 Movement Numpad Keybinds 0 Fullscreen 1 Font 24/Smallcaps Map View 76x50 Tactical HUD 1 Map Filters NONE Filters NONE Steam 1 RUN: 6b995c18-a324-4a41-b165-2c5f9a2c6c34